Cogmind - Beta 13 @@@ ROGUE MODE // 2024.04.02 @ 05:47:30 Player: TurnLeft25 Result: Destroyed by as-91795 with Assembled Rifle Performance ------------- Evolutions (1) 500 Regions Visited (4) 800 Robots Destroyed (35) 175 Value Destroyed (1107) 1107 Prototype IDs (0) 0 Alien Tech Used (0) 0 Bonus (0) 0 TOTAL SCORE: 2582 Bonus ------- None Cogmind --------- Core Integrity 0/400 Matter 241/300 Energy 100/100 System Corruption 0% Temperature Cool (0) Movement Core (300) Ox5 Location -9/Mines Parts ------- > --- POWER (1) -------- (None) > --- PROPULSION (2) --- (None) > --- UTILITY (4) ------ Medium Storage Unit Structural Scanner Salvage Targeting Computer > --- WEAPON (2) ------- Heavy Assault Rifle Shotgun > --- INVENTORY (10) --- Heat Sink Improved Heat Sink Light Assault Rifle Peak State ------------ > --- POWER ------------ Light Nuclear Core > --- PROPULSION ------- Light Treads Light Treads > --- UTILITY ---------- Heat Sink Medium Storage Unit Structural Scanner ECM Suite > --- WEAPON ----------- Heavy EM Pulse Gun Light Assault Rifle > --- INVENTORY -------- Deuterium Engine Improved Heat Sink Salvage Targeting Computer EM Pulse Gun Light Assault Rifle Heavy Assault Rifle Heavy Assault Rifle Shotgun [Rating: 13] Favorites ----------- Power Ion Engine Engine Ion Engine Power Core Light Nuclear Core Propulsion Aluminum Leg Treads Light Treads Leg Aluminum Leg Hover Unit Backup Propulsion I Utility Medium Storage Unit Device Structural Scanner Storage Medium Storage Unit Processor Salvage Targeting Computer Protection Weapon Shielding Weapon Light Assault Rifle Energy Gun Heavy EM Pulse Gun Ballistic Gun Light Assault Rifle Ballistic Cannon Light Cannon Build | -11 -10 -10 -9 -9 ------- Run | Yrd Mat Min Mat Min Slots Evolved 2 | . . . 2 . Power . | . . . . . Propulsion . | . . . . . Utility 2 | . . . 2 . Weapon . | . . . . . Parts Attached 36 | 6 7 3 18 2 Power 4 | 1 1 . 2 . Engine 3 | 1 1 . 1 . Core 1 | . . . 1 . Reactor . | . . . . . Propulsion 8 | 2 2 . 4 . Treads 3 | . . . 3 . Leg 5 | 2 2 . 1 . Wheel . | . . . . . Hover . | . . . . . Flight . | . . . . . Utility 11 | 1 2 2 6 . Device 6 | . 1 1 4 . Storage 2 | 1 1 . . . Processor 1 | . . . 1 . Hackware . | . . . . . Protection 2 | . . 1 1 . Artifact . | . . . . . Weapon 13 | 2 2 1 6 2 Energy Gun 2 | . . . 2 . Energy Cannon . | . . . . . Ballistic Gun 10 | 2 1 1 4 2 Ballistic Cannon 1 | . 1 . . . Launcher . | . . . . . Special Weapon . | . . . . . Impact Weapon . | . . . . . Slashing Weapon . | . . . . . Piercing Weapon . | . . . . . Special Melee Weapon . | . . . . . Unidentified Prototypes . | . . . . . Parts Lost 21 | . 2 2 11 6 Power 4 | . 1 . 2 1 Propulsion 4 | . . . 2 2 Utility 5 | . . 1 3 1 Weapon 8 | . 1 1 4 2 Highest Loss Streak 6 | . 2 2 4 6 To Critical Strikes . | . . . . . Average Slot Usage (%) 88 | . 92 96 84 87 Engine 7 | . 13 14 3 8 Core 2 | . . . 3 . Treads 7 | . . . 12 15 Leg 13 | . 28 28 5 . Device 16 | . 9 10 20 20 Storage 12 | . 14 14 11 11 Protection 3 | . . 1 5 . Energy Gun 3 | . . . 4 8 Ballistic Gun 16 | . 21 12 15 12 Ballistic Cannon 3 | . 4 14 1 . Naked Turns . | . . . . . Heaviest Build 26 | 12 22 22 26 26 Greatest Support 40 | 20 20 20 40 40 Greatest Overweight (x) 5 | . 1 1 3 5 Average Overweight (x) . | . . . . . Largest Inventory Capacity 10 | 8 10 10 10 10 Average Capacity 9 | 6 9 10 10 10 Most Carried 9 | 3 4 7 9 5 Average Carried 5 | 1 1 4 7 4 Final Capacity 10 | 8 10 10 10 10 Final Carried 7 | 1 4 7 5 3 Class Distribution -------------------- 69% | Mutant 28% | Scavenger-Mutant Dominant Class ---------------- Mutant | -10/Materials Scavenger-Mutant | -10/Mines Mutant | -9/Materials Mutant | -9/Mines Resources | -11 -10 -10 -9 -9 ----------- Run | Yrd Mat Min Mat Min Matter Collected 973 | 259 215 139 360 . Remotely . | . . . . . Salvage Created 1320 | . 344 136 729 111 Parts 74 | . 22 4 41 7 Haulers Intercepted . | . . . . . Recyclers Shooed . | . . . . . Parts Field Recycled . | . . . . . Retrieved Matter . | . . . . . Parts Self-Destructed . | . . . . . Prevented . | . . . . . Kills | -11 -10 -10 -9 -9 ------- Run | Yrd Mat Min Mat Min Combat Hostiles Destroyed 32 | . 9 4 17 2 Guns 27 | . 9 1 15 2 Cannons 5 | . . 3 2 . Classes Destroyed 6 | . 3 . 3 . Worker 1 | . 1 . . . Watcher 2 | . . . 2 . Swarmer 6 | . 3 . 3 . Grunt 19 | . 6 4 9 . Brawler 1 | . . . 1 . Sentry 6 | . . . 4 2 Best Kill Streak 8 | . 8 4 4 2 Combat Bots Only 5 | . 5 4 3 2 Max Kills in Single Turn 2 | . 2 1 2 1 Gunslinging 1 | . 1 . 1 . Exploded . | . . . . . Melee . | . . . . . Uniques/NPCs Destroyed . | . . . . . Combat | -11 -10 -10 -9 -9 -------- Run | Yrd Mat Min Mat Min Hostile Shots Fired 295 | . 68 48 140 39 Missed 79 | . 20 16 34 9 Damage Taken 2722 | . 497 384 1428 413 Core 556 | . 71 73 264 148 Absorbed by Shields . | . . . . . Redirected to Shielding 39 | . . 4 35 . Regen/Repaired (Parts) 127 | . . . 127 . Core Remaining (%) 71 | 100 . 42 . . Volleys Fired 142 | . 40 19 74 9 Largest 2 | . 2 2 2 2 Hottest 65 | . 55 55 65 63 Shots Fired 252 | . 62 27 148 15 Gun 220 | . 59 8 138 15 Cannon 32 | . 3 19 10 . Launcher . | . . . . . Special . | . . . . . Kinetic 217 | . 62 27 114 14 Thermal . | . . . . . Explosive . | . . . . . Electromagnetic 35 | . . . 34 1 Robot Hit Streak 18 | . 7 9 18 3 Robot Miss Streak 4 | . 3 3 4 4 Penetration Max . | . . . . . Secondary Targets 3 | . 1 . 2 . Max Gunslinging Chain 1 | . 1 . 1 . Shots Hit Robots 156 | . 37 17 93 9 Core Hits 65 | . 16 7 38 4 Critical Kills 2 | . . . 1 1 Critical Parts Destroyed 2 | . . . 1 1 Critical Strikes 7 | . . . 5 2 Destroy 4 | . . . 2 2 Blast 3 | . . . 3 . Melee Attacks . | . . . . . Impact . | . . . . . Slashing . | . . . . . Piercing . | . . . . . Sneak Attacks . | . . . . . Combat Hostiles . | . . . . . Follow-up Attacks . | . . . . . Damage Inflicted 2070 | . 505 286 1144 135 Guns 1681 | . 469 55 1024 133 Cannons 362 | . 33 231 98 . Explosions . | . . . . . Melee . | . . . . . Ramming 27 | . 3 . 22 2 Kinetic 1739 | . 502 286 818 133 Thermal . | . . . . . Explosive . | . . . . . Electromagnetic 304 | . . . 304 . Impact . | . . . . . Slashing . | . . . . . Piercing . | . . . . . Highest Corruption . | . . . . . Average Corruption . | . . . . . Corruption Purged . | . . . . . Corruption Blocked . | . . . . . Overload Shots . | . . . . . Overflow Damage . | . . . . . Projectiles . | . . . . . Explosions . | . . . . . Melee . | . . . . . Knockbacks 6 | . 1 4 1 . Impact 1 | . . . 1 . Kinetic 5 | . 1 4 . . Secondary . | . . . . . Self-Inflicted Damage . | . . . . . Shots . | . . . . . Rammed 9 | . . . 8 1 Targets Rammed 10 | . 1 . 8 1 Kicked 1 | . 1 . . . Crushed . | . . . . . Highest Temperature 51 | . 27 51 24 13 Average Temperature 15 | . 9 28 7 8 Received Heat Transfer 1152 | . 204 201 648 99 Siege Activations . | . . . . . Robots Corrupted . | . . . . . Combat Hostiles . | . . . . . Parts Fried . | . . . . . Impact Corruptions . | . . . . . Robots Melted . | . . . . . Combat Hostiles . | . . . . . Parts Melted 1 | . . . 1 . Heat Transferred . | . . . . . Parts Sabotaged . | . . . . . Parts Stolen . | . . . . . Parts Stripped . | . . . . . Power Chain Reactions . | . . . . . Alert | -11 -10 -10 -9 -9 ------- Run | Yrd Mat Min Mat Min Peak Influence 227 | . 227 90 199 82 Initial 77 | . . 10 35 77 Average 82 | . 91 71 88 73 Maximum Alert Level 1 | . 1 . . . Low Security (%) 94 | 100 75 100 100 100 Level 1 5 | . 24 . . . Level 2 . | . . . . . Level 3 . | . . . . . Level 4 . | . . . . . Level 5 . | . . . . . High Security . | . . . . . Max Security . | . . . . . Squads Dispatched 6 | . 4 . 2 . Investigation 3 | . 1 . 2 . Extermination . | . . . . . Reinforcement 3 | . 3 . . . Assault . | . . . . . Garrison . | . . . . . Intercept . | . . . . . Searches Triggered . | . . . . . Construction Impeded . | . . . . . Haulers Reinforced . | . . . . . Active Scanning Responses . | . . . . . Cargo Convoy Interrupts . | . . . . . Stealth | -11 -10 -10 -9 -9 --------- Run | Yrd Mat Min Mat Min Distress Signals 1 | . . . 1 . Communications Jammed . | . . . . . Distress Signals . | . . . . . Times Spotted 50 | . 14 7 26 3 Peak Tracking Total 4 | . 4 3 4 4 Tactical Retreats 4 | . 2 . 1 1 Traps | -11 -10 -10 -9 -9 ------- Run | Yrd Mat Min Mat Min Traps Triggered 1 | . 1 . . . Indirectly . | . . . . . Trap Hack Attempts . | . . . . . Triggered . | . . . . . Disarmed . | . . . . . Reprogrammed . | . . . . . Reused . | . . . . . Traps Extracted . | . . . . . Installed . | . . . . . Triggered . | . . . . . Machines | -11 -10 -10 -9 -9 ---------- Run | Yrd Mat Min Mat Min Machines Disabled 2 | . . . 1 1 Max in Single Turn 1 | . . . 1 1 Machines Repaired . | . . . . . Machines Dismantled . | . . . . . Machines Sabotaged . | . . . . . Overloaded Fab Kills . | . . . . . Hacking | -11 -10 -10 -9 -9 --------- Run | Yrd Mat Min Mat Min Machines Accessed 7 | . 3 . 4 . Terminals 4 | . 2 . 2 . Fabricators . | . . . . . Repair Stations 1 | . . . 1 . Recycling Units 1 | . 1 . . . Scanalyzers 1 | . . . 1 . Garrison Access . | . . . . . Total Hacks 25 | . 10 . 15 . Successful 16 | . 7 . 9 . Failed 9 | . 3 . 6 . Catastrophic . | . . . . . Database Lockouts . | . . . . . Manual . | . . . . . Terminals 15 | . 5 . 10 . Fabricators . | . . . . . Repair Stations 3 | . . . 3 . Recycling Units 5 | . 5 . . . Scanalyzers 2 | . . . 2 . Garrison Access . | . . . . . Terminal Hacks 8 | . 4 . 4 . Record 4 | . 2 . 2 . Unreport Threat 2 | . . . 2 . Recall Investigation 1 | . 1 . . . Zone Layout 1 | . 1 . . . Fabricator Hacks . | . . . . . Repair Station Hacks 3 | . . . 3 . Scan Component 1 | . . . 1 . Repair 1 | . . . 1 . Refit 1 | . . . 1 . Recycling Unit Hacks 3 | . 3 . . . Process 1 | . 1 . . . Report Inventory 1 | . 1 . . . Retrieve Components 1 | . 1 . . . Scanalyzer 2 | . . . 2 . Insert Component 1 | . . . 1 . Analyze 1 | . . . 1 . Garrison Access Hacks . | . . . . . Unauthorized Hacks . | . . . . . Terminals . | . . . . . Fabricators . | . . . . . Repair Stations . | . . . . . Recycling Units . | . . . . . Scanalyzers . | . . . . . Garrison Access . | . . . . . Data Cores Recovered . | . . . . . Used . | . . . . . Hacking Detections 5 | . 3 . 2 . Full Trace Events 4 | . 2 . 2 . Feedback Events . | . . . . . Feedback Blocked . | . . . . . Robot Schematics Acquired . | . . . . . Robots Built . | . . . . . Authchips . | . . . . . Time . | . . . . . Total Robot Build Rating . | . . . . . Part Schematics Acquired 1 | . . . 1 . Parts Built . | . . . . . Authchips . | . . . . . Time . | . . . . . Total Part Build Rating . | . . . . . Parts Repaired 1 | . . . 1 . Time 26 | . . . 26 . Parts Recycled . | . . . . . Recycled Matter 80 | . 80 . . . Retrieved Matter . | . . . . . Retrieved Components . | . . . . . Parts Scanalyzed 1 | . . . 1 . Part Schematics Acquired 1 | . . . 1 . Parts Damaged . | . . . . . Bothacking | -11 -10 -10 -9 -9 ------------ Run | Yrd Mat Min Mat Min Used RIF Installer . | . . . . . Robots Hacked . | . . . . . Non-combat . | . . . . . Combat . | . . . . . Robot Hacks Applied . | . . . . . Relay Couplers Released . | . . . . . Fabnet Peak Effective % . | . . . . . Robots Rewired . | . . . . . Allies Hacked . | . . . . . Hacks Repelled . | . . . . . Allies | -11 -10 -10 -9 -9 -------- Run | Yrd Mat Min Mat Min Total Allies . | . . . . . Largest Group . | . . . . . Highest-Rated Group . | . . . . . Highest-Rated Ally . | . . . . . Total Orders . | . . . . . Ally Attacks . | . . . . . Total Damage . | . . . . . Kills . | . . . . . Allies Corrupted . | . . . . . Allies Melted . | . . . . . Intel | -11 -10 -10 -9 -9 ------- Run | Yrd Mat Min Mat Min Robot Analysis Total . | . . . . . Derelict Logs Recovered . | . . . . . Drone Launches . | . . . . . Drone Recoveries . | . . . . . Exploration | -11 -10 -10 -9 -9 ------------- Run | Yrd Mat Min Mat Min Turns Passed 1949 | 81 475 220 1054 119 Spaces Moved 963 | 67 249 130 461 56 Core 18 | 17 . . . 1 Treads 397 | . . . 342 55 Legs 547 | 50 249 130 118 . Wheels . | . . . . . Hover 1 | . . . 1 . Flight . | . . . . . Fastest Speed 50 | 50 120 120 120 160 Average Speed 151 | 102 142 128 169 166 Slowest Speed 320 | 120 190 190 320 300 Overloaded Moves . | . . . . . Propulsion Burnouts . | . . . . . Robots Hopped . | . . . . . Cave-ins Triggered . | . . . . . Exploration Rate (%) 24 | 5 45 21 38 12 Regions Visited 4 Branch Regions 2 Pre-discovered Areas . | . . . . . Known Exits Taken . | . . . . . Unknown Exits Taken 4 | 1 1 1 1 . Scrap Searched 1 | . . 1 . . Spaces Dug . | . . . . . Terrain Destroyed . | . . . . . Melee . | . . . . . Projectile . | . . . . . AOE . | . . . . . Terrain Rammed . | . . . . . Walls Destroyed . | . . . . . Machines Disabled . | . . . . . Actions | -11 -10 -10 -9 -9 --------- Run | Yrd Mat Min Mat Min Total 1208 | 79 308 156 597 68 Wait 18 | . . . 18 . Move 959 | 66 248 129 460 56 Hop . | . . . . . Pick Up 36 | 7 9 5 15 . Fast Attach . | . . . . . Attach 28 | 6 4 2 14 2 Detach . | . . . . . Swap 8 | . 3 1 4 . Drop 7 | . 3 . 4 . Fire 142 | . 40 19 74 9 Melee . | . . . . . Ram . | . . . . . Kick 1 | . 1 . . . Crush 9 | . . . 8 1 Escape Stasis . | . . . . . Rewire . | . . . . . Trap . | . . . . . Miscellaneous . | . . . . . Route ------- -11/Scrapyard -10/Materials (discovered 2 exits: *Mat / [*Min]) -10/Mines -9/Materials -9/Mines History --------- Turn | Location | Event 7 | -11/Scrapyard | Discovered new exit (range 15) 82 | -11/Scrapyard | Entered Materials 314 | -10/Materials | Build established: Mutant 435 | -10/Materials | Discovered new exit (range 10) 539 | -10/Materials | Discovered new exit (range 6) 557 | -10/Materials | Entered Mines 609 | -10/Mines | Core integrity fell below 50% 757 | -10/Mines | Discovered new exit (range 15) 777 | -10/Mines | Entered Materials 777 | -9/Materials | Evolved 2 slots: Utility x2 1437 | -9/Materials | Repaired Lgt. Treads 1592 | -9/Materials | Core integrity fell below 50% 1706 | -9/Materials | Build established: Scavenger-Mutant 1783 | -9/Materials | Lost 4 parts (1p1u2w) 1805 | -9/Materials | Discovered new exit (range 16) 1831 | -9/Materials | Entered Mines 1847 | -9/Mines | Assembled infested the area 1866 | -9/Mines | Met a Derelict bent on vengeance 1929 | -9/Mines | Core integrity fell below 20% 1950 | -9/Mines | Destroyed by as-91795 with Assembled Rifle Last Messages --------------- K-01 Serf cleans the Material Processor. LOCATION=UNKNOWN GOAL=ESCAPE Something is scanning the area. ALERT: Infestation in the mines, dispatching Demolisher response squad. Slammed into K-01 Serf. Lgt. Treads destroyed. Critical hit (Burn: +37). Machine disabled. EM Pulse Gun destroyed. Deuterium Engine destroyed. Lgt. Treads destroyed. Heat Sink destroyed. Y-45 Defender suffers critical hit (Destroy). Y-45 Defender destroyed. Autogun destroyed. Y-45 Defender destroyed. as-91795 suffers critical hit (Destroy). Destroyed Asb. Hover Unit. Map ----- +----------------------------------------------------+ | | | | | | | | | | | | | | | | | | | | | ?????????????????????????#######??? | | ?????????????????????????## ####? | | ?????????????????????????## ####? | | ???????????????????######## ##? | | ?????????????############## ##? | | ?????????????######## ##? | | ?????????????## % ##### ##? | | ?????????????## ########### ##? | | ?????????????## ########?## ##? | | ?????????????## ##???????#### ####? | | ?????????????## ##???????#### ####? | | ??????????## ########## ###?? | | ??????????## """ ########## ####? | | ??????????## """ ####!!## ###? | | ??????????## """ ###"!/ # ##? | | ??????????## ###!%[@/ ##? | | ??????????#### #######%*!=/ ###? | | ??????????####=#######[!!%#a ####? | | ????????????##%?????###!!## ###?? | | ???????????? =????? ### ##??? | | ???????????????????? ### ##??? | | ?????????????????? ??? # ##??? | | ????????????????? ???? # ##??? | | ???????????????? ??? ##??? | | ??????????????? ???? #! ##??? | | ??????????????? ???? %= #??? | | ??????????????? ??????!=! ##?? | | ???????????????? ???????%%!%] ##?? | | ?????????????????????????? #%####?? | | ?????????????????????????? # ####?? | | ??????????????????????????????????? | | ??????????????????????????????????? | | ??????????????????????????????????? | | ??????????????????????????????????? | | ??????????????????????????????????? | | ??????????????????????????????????? | | ??????????????????????????????????? | | ??????????????????????????????????? | | ??????????????????????????????????? | | ??????????????????????????????????? | +----------------------------------------------------+ Best States ------------- Heat Dissipation 38 Energy Generation 14 Energy Capacity 275 Matter Stores 300 Matter Capacity 300 Sight Range 16 Terrain Scan Density 10 ECM Strength 1 Armor Coverage 150 Weapon Shielding 33 Evasion (%) 55 Recoil Reduction 2 Salvage Targeting 1 Item Schematics ----------------- Lgt. Nuclear Core | -9/Materials | Scanalyzed Robot Schematics ------------------ None Fabricated ------------ Nothing Alien Tech Used ----------------- None Achievements -------------- None Challenges ------------ None Game ------ Seed ActiveCouplerKit Manual? 0 Play Time 00:20:38 Cumulative 2.0 hours Start 2024.04.02 @ 05:26:08 End 2024.04.02 @ 05:47:30 Sessions 1 Manual Loads 0 Difficulty Rogue Special Mode None Game No. 5 Rogue 5 Adventurer 0 Explorer 0 Win Type - Total 0 Types 0/0/0/0/0/0/0/0/0 Lore% 9 Gallery% 6 Achievement% 8 Wizard Run 0 Options --------- Layout 1 ASCII 0 Keyboard 0 Movement Arrows Keybinds 0 Fullscreen 1 Font 24/Smallcaps Map View 50x40 Zoom Use 0% Tactical HUD 0 Map Filters NONE Filters NONE Steam 1 RUN: 55512d08-3809-45e7-ae36-dd18a7b1e6a6